Workbook

Sheet Aloitus
B1: TIETOJA TÄSTÄ MALLISTA
B2: Tämän tapahtumabudjettityökirjan avulla voit seurata tapahtuman tuloja ja kuluja.
B3: Kirjoita tapahtuman nimi ja tiedot Kulut- ja Tulot-laskentataulukoihin.
B4: Kulujen ja tulojen yhteissummat lasketaan automaattisesti.
B5: Voitto ja tappio -yhteenveto ja -kaavio päivitetään automaattisesti Voiton ja tappion yhteenveto -laskentataulukkoon.
B6: Huomautus:
B7: Kunkin laskentataulukon sarakkeessa A annetaan lisäohjeita. Tämä teksti on piilotettu tarkoituksella. Jos haluat poistaa tekstin, valitse sarake A ja valitse sitten POISTA. Jos haluat tuoda tekstin näkyviin, valitse sarake A ja muuta sitten fonttiväriä.
B8: Jos haluat lisätietoja jostakin taulukosta, paina kyseisessä taulukossa VAIHTO ja sitten F10, valitse TAULUKKO-vaihtoehto ja valitse sitten VAIHTOEHTOINEN TEKSTI.

Sheet Kulut
A1: Kirjoita kunkin luokan arvioidut ja toteutuneet kulut laskentataulukon vastaaviin taulukkoihin, ja kirjoita tapahtuman nimi soluun D1 tämän ja muiden laskentataulukoiden mukauttamiseksi. Tämän laskentataulukon otsikko on solussa H1. Tämän sarakkeen soluissa on hyödyllisiä ohjeita tämän laskentataulukon käyttöön. Seuraava ohje on solussa A3. | B1: Budjetti tapahtumalle Tapahtuman nimi | H1: KULUT
A3: Kulut yhteensä -otsikko on solussa oikealla, Arvioidut kulut -otsikko solussa G3 ja Todelliset kulut -otsikko solussa H3. | B3: KULUT YHTEENSÄ | G3: Arvio | H3: Todellinen
A4: Arvioidut kulut yhteensä solussa G4 ja Todelliset kulut yhteensä solussa H4 lasketaan automaattisesti. Seuraava ohje on solussa A6. | G4: =SUM(C11,C19,C25,C32,G11,G19,G24) -> 882.00 € | H4: =SUM(D11,D19,D25,D32,H11,H19,H24) -> 333.00 €
A6: Kirjoita tilasta aiheutuvat kulut oikealla olevasta solusta alkavaan taulukkoon ja virvokkeista aiheutuvat kulut solusta F6 alkavaan taulukkoon. Seuraava ohje on solussa A13. | B6: Tila | C6: Arvio | D6: Toteutunut | F6: Virvokkeet | G6: Arvio | H6: Todellinen
B7: Huoneiden ja tilojen hinnat | C7: 500.00 € | F7: Ruoka
B8: Tilan henkilökunta | F8: Juomat | G8: 20.00 €
B9: Laitteet | F9: Liinavaatteet | H9: 20.00 €
B10: Pöydät ja tuolit | F10: Henkilökunta ja palvelurahat
B11: Summa | C11: =SUBTOTAL(109,SiteExpenses[Arvio]) -> 500.00 € | D11: =SUBTOTAL(109,SiteExpenses[Toteutunut]) -> 0.00 € | F11: Summa | G11: =SUBTOTAL(109,RefreshmentsExpenses[Arvio]) -> 20.00 € | H11: =SUBTOTAL(109,RefreshmentsExpenses[Todellinen]) -> 20.00 €
A13: Kirjoita koristeista aiheutuvat kulut oikealla olevasta solusta alkavaan taulukkoon ja ohjelmasta aiheutuvat kulut solusta F13 alkavaan taulukkoon. Seuraava ohje on solussa A21. | B13: Koristeet | C13: Arvio | D13: Todellinen | F13: Ohjelma | G13: Arvio | H13: Todellinen
B14: Kukat | C14: 200.00 € | D14: 300.00 € | F14: Esiintyjät
B15: Kynttilät | F15: Kaiuttimet | G15: 30.00 €
B16: Valaistus | F16: Matkakulut
B17: Ilmapallot | F17: Hotelli
B18: Paperitarvikkeet | F18: Muut
B19: Summa | C19: =SUBTOTAL(109,DecorationsExpenses[Arvio]) -> 200.00 € | D19: =SUBTOTAL(109,DecorationsExpenses[Todellinen]) -> 300.00 € | F19: Summa | G19: =SUBTOTAL(109,ProgramExpenses[Arvio]) -> 30.00 € | H19: =SUBTOTAL(109,ProgramExpenses[Todellinen]) -> 0.00 €
A21: Kirjoita tiedotuksesta aiheutuvat kulut oikealla olevasta solusta alkavaan taulukkoon ja palkinnoista aiheutuvat kulut solusta F21 alkavaan taulukkoon. Seuraava ohje on solussa A27. | B21: Tiedotus | C21: Arvio | D21: Todellinen | F21: Palkinnot | G21: Arvio | H21: Todellinen
B22: Grafiikat | F22: Nauhat/kyltit/pokaalit
B23: Kopiot/tulosteet | C23: 20.00 € | F23: Lahjat | G23: 100.00 €
B24: Postimaksut | F24: Summa | G24: =SUBTOTAL(109,PrizesExpenses[Arvio]) -> 100.00 € | H24: =SUBTOTAL(109,PrizesExpenses[Todellinen]) -> 0.00 €
B25: Summa | C25: =SUBTOTAL(109,PublicityExpenses[Arvio]) -> 20.00 € | D25: =SUBTOTAL(109,PublicityExpenses[Todellinen]) -> 0.00 €
A27: Kirjoita muut kulut oikealla olevasta solusta alkavaan taulukkoon. | B27: Sekalaiset | C27: Arvio | D27: Todellinen
B28: Puhelin | D28: 13.00 €
B29: Liikenne | C29: 12.00 €
B30: Paperitavarat
B31: Faksipalvelut
B32: Summa | C32: =SUBTOTAL(109,MiscellaneousExpenses[Arvio]) -> 12.00 € | D32: =SUBTOTAL(109,MiscellaneousExpenses[Todellinen]) -> 13.00 €

Sheet Tulot
A1: Kirjoita kunkin luokan arvioidut ja toteutuneet tulot niitä vastaaviin taulukoihin tässä laskentataulukossa. Tämän laskentataulukon otsikko päivittyy automaattisesti oikealla oleviin soluihin. Otsikko on solussa G1. Tämän sarakkeen soluissa on hyödyllisiä ohjeita tämän laskentataulukon käyttöön. Seuraava ohje on solussa A3. | B1: =Kulut!B1 -> Budjetti tapahtumalle Tapahtuman nimi | G1: TULOT
A3: Tulot yhteensä -otsikko on solussa oikealla, Arvio tulot -otsikko solussa F3 ja Todellinen tulot -otsikko solussa G3. | B3: TULOT YHTEENSÄ | F3: Arvio | G3: Todellinen
A4: Arvioidut tulot yhteensä solussa F4 ja Todelliset tulot yhteensä solussa G4 lasketaan automaattisesti. | F4: =SUM(Sisäänpääsy[[#Totals],[Arvioidut tulot]],OhjelmanMainokset[[#Totals],[Arvioidut tulot]],ExhibitorsAndVendors[[#Totals],[Arvioidut tulot]],MyydytKohteet[[#Totals],[Arvioidut tulot]]) -> 1,936.00 € | G4: =SUM(Sisäänpääsy[[#Totals],[Todelliset tulot]],OhjelmanMainokset[[#Totals],[Todelliset tulot]],ExhibitorsAndVendors[[#Totals],[Todelliset tulot]],MyydytKohteet[[#Totals],[Todelliset tulot]]) -> 1,831.00 €
A5: Sisäänpääsy-selite on solussa oikealla. | B5: SISÄÄNPÄÄSY
A6: Kirjoita sisäänpääsylippujen arvioitu ja todellinen määrä sekä lippujen hinnat oikealla olevasta solusta alkavaan taulukkoon. Sisäänpääsyn arvioidut ja todelliset tulot lasketaan automaattisesti. Seuraava ohje on solussa A11. | B6: Arvioitu määrä | C6: Todellinen määrä | D6: Tyyppi | E6: Hinta | F6: Arvioidut tulot | G6: Todelliset tulot
B7: 300 | C7: 278 | D7: Aikuiset @ | E7: 5.00 € | F7: =B7*E7 -> 1,500.00 € | G7: =C7*E7 -> 1,390.00 €
B8: 197 | C8: 195 | D8: Lapset @ | E8: 2.00 € | F8: =B8*E8 -> 394.00 € | G8: =C8*E8 -> 390.00 €
B9: 42 | C9: 51 | D9: Muut @ | E9: 1.00 € | F9: =B9*E9 -> 42.00 € | G9: =C9*E9 -> 51.00 €
B10: Summa | F10: =SUBTOTAL(109,Sisäänpääsy[Arvioidut tulot]) -> 1,936.00 € | G10: =SUBTOTAL(109,Sisäänpääsy[Todelliset tulot]) -> 1,831.00 €
A11: Ohjelman mainokset -selite on solussa oikealla. | B11: OHJELMAN MAINOKSET
A12: Kirjoita ohjelman mainosten arvioitu ja todellinen määrä sekä mainosten hinnat oikealla olevasta solusta alkavaan taulukkoon. Mainosten arvioidut ja todelliset tulot lasketaan automaattisesti. Seuraava ohje on solussa A17. | B12: Arvioitu määrä | C12: Todellinen määrä | D12: Tyyppi | E12: Hinta | F12: Arvioidut tulot | G12: Todelliset tulot
B13: 12 | D13: Kansilehdet @ | F13: =B13*E13 -> 0.00 € | G13: =C13*E13 -> 0.00 €
C14: 158 | D14: Puolikkaat sivut @ | F14: =B14*E14 -> 0.00 € | G14: =C14*E14 -> 0.00 €
B15: 4 | D15: Neljännessivut @ | F15: =B15*E15 -> 0.00 € | G15: =C15*E15 -> 0.00 €
B16: Summa | F16: =SUBTOTAL(109,OhjelmanMainokset[Arvioidut tulot]) -> 0.00 € | G16: =SUBTOTAL(109,OhjelmanMainokset[Todelliset tulot]) -> 0.00 €
A17: Näytteilleasettajat tai Myyjät selite on oikealla olevassa solussa. | B17: NÄYTTEILLEASETTAJAT/MYYJÄT
A18: Kirjoita näytteilleasettajien ja myyjien arvioitu ja todellinen määrä sekä kojujen hinnat oikealla olevasta solusta alkavaan taulukkoon. Arvioidut ja todelliset tulot lasketaan automaattisesti. Seuraava ohje on solussa A23. | B18: Arvioitu määrä | C18: Todellinen määrä | D18: Tyyppi | E18: Hinta | F18: Arvioidut tulot | G18: Todelliset tulot
B19: 23 | D19: Suuret kojut @ | F19: =B19*E19 -> 0.00 € | G19: =C19*E19 -> 0.00 €
B20: 354 | D20: Keskisuuret kojut @ | F20: =B20*E20 -> 0.00 € | G20: =C20*E20 -> 0.00 €
B21: 56 | D21: Pienet kojut @ | F21: =B21*E21 -> 0.00 € | G21: =C21*E21 -> 0.00 €
B22: Summa | F22: =SUBTOTAL(109,ExhibitorsAndVendors[Arvioidut tulot]) -> 0.00 € | G22: =SUBTOTAL(109,ExhibitorsAndVendors[Todelliset tulot]) -> 0.00 €
A23: Myydyt kohteet -selite on solussa oikealla. | B23: MYYDYT KOHTEET
A24: Kirjoita myytyjen kohteiden arvioitu ja todellinen määrä sekä hinnat oikealla olevasta solusta alkavaan taulukkoon. Arvioidut ja todelliset tulot lasketaan automaattisesti. | B24: Arvioitu määrä | C24: Todellinen määrä | D24: Tyyppi | E24: Hinta | F24: Arvioidut tulot | G24: Todelliset tulot
D25: Kohteet @ | F25: =B25*E25 -> 0.00 € | G25: =C25*E25 -> 0.00 €
B26: 123 | D26: Kohteet @ | F26: =B26*E26 -> 0.00 € | G26: =C26*E26 -> 0.00 €
D27: Kohteet @ | F27: =B27*E27 -> 0.00 € | G27: =C27*E27 -> 0.00 €
B28: 13 | D28: Kohteet @ | F28: =B28*E28 -> 0.00 € | G28: =C28*E28 -> 0.00 €
B29: Summa | F29: =SUBTOTAL(109,MyydytKohteet[Arvioidut tulot]) -> 0.00 € | G29: =SUBTOTAL(109,MyydytKohteet[Todelliset tulot]) -> 0.00 €

Sheet Voiton ja tappion yhteenveto
A1: Yhteenveto tuloista ja menoista ja kaavio, jossa näkyy kulut ja menot yhteensä, päivitetään automaattisesti tähän laskentataulukkoon. Tämän laskentataulukon otsikko päivittyy automaattisesti oikealla oleviin soluihin. Otsikko on soluissa G1 ja G2. Tämän sarakkeen soluissa on hyödyllisiä ohjeita tämän laskentataulukon käyttöön. Seuraava ohje on solussa A3. | B1: =Kulut!B1 -> Budjetti tapahtumalle Tapahtuman nimi | G1: TUOTTO
G2: Tappion yhteenveto
A3: Solussa E3 on palkkikaavio, jossa vertaillaan arvioituja tuloja ja menoja sekä todellisia tuloja ja menoja. | E3: Tässä solussa on palkkikaavio, jossa vertaillaan arvioituja tuloja ja menoja sekä todellisia tuloja ja menoja.
A4: Yhteenvetotaulukko päivittyy automaattisesti ja alkaa oikealla olevasta solusta. Seuraava ohje on solussa A8. | B4: Yhteensä | C4: Arvio | D4: Todellinen
B5: Tulot yhteensä | C5: =Tulot!F4 -> 1,936.00 € | D5: =Tulot!G4 -> 1,831.00 €
B6: Kulut yhteensä | C6: =Kulut!G4 -> 882.00 € | D6: =Kulut!H4 -> 333.00 €
A8: Arvioitu tuotto tai tappio yhteensä lasketaan automaattisesti soluun C8 ja todellinen tuotto tai tappio soluun D8. | B8: Yhteenlaskettu tuotto (tai tappio) | C8: =C5-C6 -> 1,054.00 € | D8: =D5-D6 -> 1,498.00 €
